Cogmind - Beta 16.1 @@@ ROGUE MODE // 2026.02.20 @ 16:53:12 Player: GrumpyTiger Result: Destroyed by G-47 Trooper with Particle Gun Performance ------------- Evolutions (0) 0 Regions Visited (3) 600 Robots Destroyed (30) 150 Value Destroyed (483) 483 Prototype IDs (3) 60 Alien Tech Used (0) 0 Bonus (-34) -34 TOTAL SCORE: 1259 Bonus ------- Friendly Fire -34 Cogmind --------- Core Integrity 0/250 Matter 300/300 Energy 275/275 System Corruption 0% Temperature Cool (27) Movement Treading (160) Location -7/Recycling Parts ------- > --- POWER (1) -------- Deuterium Engine > --- PROPULSION (2) --- Spiked Treads > --- UTILITY (2) ------ Improved Cooling System Hacking Suite > --- WEAPON (2) ------- Subdweller Machine Gun Power Sword > --- INVENTORY (5) ---- Small Storage Unit Machine Analyzer Visual Processing Unit Improved Concussive RPG (1) Peak State ------------ > --- POWER ------------ Deuterium Engine > --- PROPULSION ------- Spiked Treads > --- UTILITY ---------- Improved Cooling System Hacking Suite > --- WEAPON ----------- Subdweller Machine Gun Power Sword > --- INVENTORY -------- Heat Sink Small Storage Unit Machine Analyzer Visual Processing Unit Improved Concussive RPG [Rating: 20] Favorites ----------- Power Ion Engine Engine Ion Engine Propulsion Aluminum Leg Treads Spiked Treads Leg Aluminum Leg Utility Hacking Suite Device Heat Sink Storage Small Storage Unit Hackware Hacking Suite Weapon Subdweller Machine Gun Energy Gun Medium Laser Energy Cannon Beam Cannon Ballistic Gun Subdweller Machine Gun Launcher Improved Concussive RPG Slashing Weapon Power Sword Build | -11 -10 -10 -7 ------- Run | Yrd Mat Sub Rec Slots Evolved . | . . . . Power . | . . . . Propulsion . | . . . . Utility . | . . . . Weapon . | . . . . Parts Attached 24 | 6 9 5 4 Power 4 | 1 1 1 1 Engine 4 | 1 1 1 1 Core . | . . . . Reactor . | . . . . Propulsion 6 | 2 3 1 . Treads 1 | . . 1 . Leg 5 | 2 3 . . Wheel . | . . . . Hover . | . . . . Flight . | . . . . Utility 4 | 1 2 . 1 Device 2 | . 1 . 1 Storage 1 | 1 . . . Processor . | . . . . Hackware 1 | . 1 . . Protection . | . . . . Artifact . | . . . . Weapon 10 | 2 3 3 2 Energy Gun 4 | 2 1 1 . Energy Cannon 2 | . 2 . . Ballistic Gun 2 | . . 2 . Ballistic Cannon . | . . . . Launcher 1 | . . . 1 Special Weapon . | . . . . Impact Weapon . | . . . . Slashing Weapon 1 | . . . 1 Piercing Weapon . | . . . . Special Melee Weapon . | . . . . Unidentified Prototypes . | . . . . Parts Lost 1 | . . 1 . Power 1 | . . 1 . Propulsion . | . . . . Utility . | . . . . Weapon . | . . . . Highest Loss Streak 1 | . . 1 . To Critical Strikes . | . . . . Average Backups 3 | 1 2 4 4 Power . | . . . . Propulsion . | . . . . Utility 2 | . . 3 3 Weapon . | . 1 1 . Tool/Special . | . . . . Unused Backups 5 | . . . 5 Power . | . . . . Propulsion . | . . . . Utility 4 | . . . 4 Weapon 1 | . . . 1 Tool/Special . | . . . . Average Slot Usage (%) 85 | . 92 82 79 Engine 10 | . 14 8 8 Treads 7 | . . 11 14 Leg 12 | . 28 5 . Device 9 | . 2 14 14 Storage 5 | . 12 . . Hackware 10 | . 6 14 14 Energy Gun 10 | . 25 2 . Energy Cannon 2 | . 2 7 . Ballistic Gun 12 | . . 18 20 Slashing Weapon 2 | . . . 7 Peak Build Rating 20 | 6 9 12 20 Average Rating 10 | 3 7 10 15 On Entrance 6 | . 6 9 11 Avg Prop Armor Cover (%) . | . . . . Naked Turns . | . . . . Heaviest Build 18 | 13 14 12 18 Greatest Support 20 | 20 20 20 20 Greatest Overweight (x) . | . . . . Average Overweight (x) . | . . . . Largest Inventory Capacity 8 | 8 8 5 5 Average Capacity 6 | 6 7 5 5 Most Carried 5 | 5 5 5 5 Average Carried 3 | 1 2 4 4 Final Capacity 8 | 8 5 5 5 Final Carried 5 | . 3 5 4 Class Distribution -------------------- 69% | Mutant 30% | Scavenger-Mutant Dominant Class ---------------- Scavenger-Mutant | -10/Materials Mutant | -10/Subcaves Mutant | -7/Recycling Resources | -11 -10 -10 -7 ----------- Run | Yrd Mat Sub Rec Matter Collected 485 | 51 279 40 115 Remotely . | . . . . Salvage Created 1256 | . 533 139 584 Parts 52 | . 26 7 19 Haulers Intercepted . | . . . . Recyclers Shooed 7 | . 3 . 4 Parts Field Recycled . | . . . . Retrieved Matter . | . . . . Parts Self-Destructed 8 | . . 8 . Prevented . | . . . . Parts Restored . | . . . . Kills | -11 -10 -10 -7 ------- Run | Yrd Mat Sub Rec Combat Hostiles Destroyed 15 | . 10 5 . Guns 11 | . 10 1 . Cannons 4 | . . 4 . Classes Destroyed 8 | . 6 2 . Worker 1 | . 1 . . Recycler 10 | . 3 . 7 Operator 1 | . 1 . . Turret 2 | . . 2 . Watcher 1 | . 1 . . Swarmer 8 | . 5 3 . Grunt 5 | . 5 . . Subdweller 2 | . . 2 . Best Kill Streak 7 | . 7 3 3 Combat Bots Only 7 | . 7 3 . Max Kills in Single Turn 2 | . 2 2 1 Gunslinging 1 | . 1 . . Exploded . | . . . . Melee . | . . . . Uniques/NPCs Destroyed . | . . . . Combat | -11 -10 -10 -7 -------- Run | Yrd Mat Sub Rec Hostile Shots Fired 145 | . 52 83 10 Missed 53 | . 14 35 4 Hits 92 | . 38 48 6 Projectile 92 | . 38 48 6 AOE 3 | . . 3 . Damage Taken 1100 | . 386 650 64 Core 254 | . 62 164 28 Absorbed by Shields . | . . . . Core Remaining (%) 100 | 100 . . . Volleys Fired 89 | . 55 24 10 Largest 2 | . 2 2 2 Hottest 120 | . 90 120 60 Shots Fired 173 | . 109 48 16 Gun 136 | . 109 11 16 Cannon 37 | . . 37 . Launcher . | . . . . Special . | . . . . Kinetic 20 | . . 4 16 Thermal 153 | . 109 44 . Explosive . | . . . . Electromagnetic . | . . . . Robot Hit Streak 12 | . 7 11 12 Robot Miss Streak 3 | . 3 3 2 Penetration Max . | . . . . Secondary Targets 4 | . 4 . . Max Gunslinging Chain 1 | . 1 . . Shots Hit Robots 105 | . 58 32 15 Core Hits 42 | . 26 10 6 Critical Kills 1 | . . 1 . Critical Parts Destroyed 2 | . . . 2 Critical Strikes 4 | . 1 1 2 Burn 1 | . 1 . . Destroy 3 | . . 1 2 Melee Attacks 6 | . . . 6 Impact . | . . . . Slashing 6 | . . . 6 Piercing . | . . . . Sneak Attacks 4 | . . . 4 Combat Hostiles . | . . . . Follow-up Attacks . | . . . . Damage Inflicted 2001 | . 748 640 613 Guns 1116 | . 737 187 192 Cannons 453 | . . 453 . Explosions . | . . . . Melee 421 | . . . 421 Ramming 11 | . 11 . . Kinetic 253 | . . 61 192 Thermal 1316 | . 737 579 . Explosive . | . . . . Electromagnetic . | . . . . Impact . | . . . . Slashing 421 | . . . 421 Piercing . | . . . . Highest Corruption . | . . . . Average Corruption . | . . . . Corruption Purged . | . . . . Corruption Blocked . | . . . . Overload Shots . | . . . . Overflow Damage 156 | . . 9 147 Projectiles 9 | . . 9 . Explosions . | . . . . Melee 147 | . . . 147 Knockbacks . | . . . . Impact . | . . . . Kinetic . | . . . . Secondary . | . . . . Self-Inflicted Damage . | . . . . Shots . | . . . . Rammed . | . . . . Targets Rammed 2 | . 2 . . Kicked 2 | . 2 . . Crushed . | . . . . Highest Temperature 460 | . 460 8 . Average Temperature 170 | . 175 5 . Received Heat Transfer 351 | . 150 174 27 Effects 6 | . 6 . . Interference 4 | . 4 . . Short Circuit 1 | . 1 . . Damage (minor) 1 | . 1 . . Siege Activations . | . . . . Martial Activations . | . . . . Shielding Activations . | . . . . Robots Disrupted . | . . . . Combat Hostiles . | . . . . Robots Corrupted . | . . . . Combat Hostiles . | . . . . Parts Fried . | . . . . Impact Corruptions . | . . . . Robots Melted . | . . . . Combat Hostiles . | . . . . Parts Melted 2 | . 2 . . Heat Transferred 3108 | . 1996 1112 . Parts Sabotaged . | . . . . Parts Stolen . | . . . . Parts Stripped . | . . . . Power Chain Reactions . | . . . . Alert | -11 -10 -10 -7 ------- Run | Yrd Mat Sub Rec Maximum Alert Level 1 | . 1 . . Low Security (%) 99 | 100 99 . 100 Level 1 . | . . . . Level 2 . | . . . . Level 3 . | . . . . Level 4 . | . . . . Level 5 . | . . . . High Security . | . . . . Max Security . | . . . . Peak Influence 195 | . 195 . 15 Initial . | . . . . Average 63 | . 119 . 1 Influence Increases 461 | . 306 100 55 Destroy 0b10 Robot/C 300 | . 200 100 . Destroy 0b10 Robot/NC 70 | . 30 . 40 Destroy Leader 22 | . 22 . . Successful Hack 19 | . 7 . 12 Destroy Structure 5 | . 2 . 3 Lose Combat Pursuer 45 | . 45 . . Influence Decreases 456 | . 260 146 50 Entered New Map 23 | . . 23 . Time Decay 433 | . 260 123 50 Squads Dispatched 1 | . 1 . . Investigation 1 | . 1 . . Extermination . | . . . . Reinforcement . | . . . . Assault . | . . . . Garrison . | . . . . Intercept . | . . . . Searches Triggered . | . . . . Construction Impeded . | . . . . Haulers Reinforced . | . . . . Active Scanning Responses . | . . . . Cargo Convoy Interrupts . | . . . . Stealth | -11 -10 -10 -7 --------- Run | Yrd Mat Sub Rec Distress Signals . | . . . . Communications Jammed . | . . . . Distress Signals . | . . . . Times Spotted 30 | . 20 8 2 Peak Tracking Total 8 | . 8 6 . Tactical Retreats 2 | . 2 . . Traps | -11 -10 -10 -7 ------- Run | Yrd Mat Sub Rec Traps Triggered . | . . . . Indirectly . | . . . . Trap Hack Attempts . | . . . . Triggered . | . . . . Disarmed . | . . . . Reprogrammed 6 | . 6 . . Reused . | . . . . Traps Extracted . | . . . . Installed . | . . . . Triggered . | . . . . Machines | -11 -10 -10 -7 ---------- Run | Yrd Mat Sub Rec Machines Disabled 2 | . . 2 . Max in Single Turn 1 | . . 1 . Machines Repaired . | . . . . Machines Dismantled . | . . . . Machines Sabotaged . | . . . . Overloaded Fab Kills . | . . . . Hacking | -11 -10 -10 -7 --------- Run | Yrd Mat Sub Rec Machines Accessed 8 | . 5 . 3 Terminals 6 | . 4 . 2 Fabricators . | . . . . Repair Stations . | . . . . Recycling Units 2 | . 1 . 1 Scanalyzers . | . . . . Garrison Access . | . . . . Total Hacks 20 | . 14 . 6 Successful 9 | . 6 . 3 Failed 11 | . 8 . 3 Catastrophic . | . . . . Database Lockouts . | . . . . Manual 1 | . 1 . . Terminals 14 | . 11 . 3 Fabricators . | . . . . Repair Stations . | . . . . Recycling Units 6 | . 3 . 3 Scanalyzers . | . . . . Garrison Access . | . . . . Terminal Hacks 6 | . 5 . 1 Robot Analysis 2 | . 2 . . Prototype ID Bank 1 | . . . 1 Locate Traps 2 | . 2 . . Reprogram Traps 1 | . 1 . . Fabricator Hacks . | . . . . Repair Station Hacks . | . . . . Recycling Unit Hacks 3 | . 1 . 2 Report Inventory 2 | . 1 . 1 Retrieve Components 1 | . . . 1 Scanalyzer . | . . . . Garrison Access Hacks . | . . . . Unauthorized Hacks . | . . . . Terminals . | . . . . Fabricators . | . . . . Repair Stations . | . . . . Recycling Units . | . . . . Scanalyzers . | . . . . Garrison Access . | . . . . Data Cores Recovered . | . . . . Used . | . . . . Hacking Detections 8 | . 5 . 3 Full Trace Events 2 | . 2 . . Feedback Events . | . . . . Feedback Blocked . | . . . . Robot Schematics Acquired . | . . . . Robots Built . | . . . . Authchips . | . . . . Time . | . . . . Total Robot Build Rating . | . . . . Part Schematics Acquired . | . . . . Parts Built . | . . . . Authchips . | . . . . Time . | . . . . Total Part Build Rating . | . . . . Part Studies Acquired . | . . . . Parts Repaired . | . . . . Time . | . . . . Parts Recycled . | . . . . Recycled Matter . | . . . . Retrieved Matter . | . . . . Retrieved Components 2 | . . . 2 Parts Scanalyzed . | . . . . Part Schematics Acquired . | . . . . Parts Damaged . | . . . . Bothacking | -11 -10 -10 -7 ------------ Run | Yrd Mat Sub Rec Used RIF Installer . | . . . . Robots Hacked . | . . . . Non-combat . | . . . . Combat . | . . . . Robot Hacks Applied . | . . . . Relay Couplers Released . | . . . . Fabnet Peak Effective % . | . . . . Robots Rewired . | . . . . Allies Hacked . | . . . . Hacks Repelled . | . . . . Allies | -11 -10 -10 -7 -------- Run | Yrd Mat Sub Rec Total Allies . | . . . . Largest Group . | . . . . Highest-Rated Group . | . . . . Highest-Rated Ally . | . . . . Total Orders . | . . . . Ally Attacks . | . . . . Total Damage . | . . . . Kills . | . . . . Allies Corrupted . | . . . . Allies Melted . | . . . . Intel | -11 -10 -10 -7 ------- Run | Yrd Mat Sub Rec Active Infowar (turns) . | . . . . Robot Analysis Total 2 | . 2 . . Derelict Logs Recovered . | . . . . Drone Launches . | . . . . Drone Recoveries . | . . . . Exploration | -11 -10 -10 -7 ------------- Run | Yrd Mat Sub Rec Turns Passed 1655 | 35 626 465 529 Spaces Moved 912 | 27 346 243 296 Core 12 | 12 . . . Treads 510 | . . 214 296 Legs 390 | 15 346 29 . Wheels . | . . . . Hover . | . . . . Flight . | . . . . Fastest Speed 50 | 50 120 120 160 Average Speed 141 | 88 120 155 160 Slowest Speed 160 | 120 120 160 160 Overloaded Moves . | . . . . Propulsion Burnouts . | . . . . Robots Hopped . | . . . . Potential Cave-ins . | . . . . Cave-ins Triggered . | . . . . Exploration Rate (%) 32 | 4 60 12 54 Regions Visited 3 Branch Regions 2 Pre-discovered Areas 1 | . . 1 . Known Exits Taken . | . . . . Unknown Exits Taken 3 | 1 1 1 . Scrap Searched . | . . . . Spaces Dug . | . . . . Terrain Destroyed 3 | . . . 3 Melee . | . . . . Projectile 3 | . . . 3 AOE . | . . . . Terrain Rammed . | . . . . Walls Destroyed . | . . . . Machines Disabled . | . . . . Actions | -11 -10 -10 -7 --------- Run | Yrd Mat Sub Rec Total 1097 | 37 448 284 328 Wait 18 | . 18 . . Move 909 | 26 345 242 296 Hop . | . . . . Pick Up 28 | 5 11 7 5 Fast Attach 3 | 1 . . 2 Attach 11 | 5 4 1 1 Detach . | . . . . Swap 11 | . 6 4 1 Drop 20 | . 7 6 7 Fire 89 | . 55 24 10 Melee 6 | . . . 6 Ram . | . . . . Kick 2 | . 2 . . Crush . | . . . . Escape Stasis . | . . . . Rewire . | . . . . Trap . | . . . . Miscellaneous . | . . . . Route ------- -11/Scrapyard -10/Materials (discovered 4 exits: [*Mat x2] / [*Min] / [*Sub]) -10/Subcaves -7/Recycling (discovered 1 exit: [*Fac]) History --------- Turn | Location | Event 19 | -11/Scrapyard | Discovered new exit (range 15) 36 | -11/Scrapyard | Entered Materials 151 | -10/Materials | Destroyed 7 combat bots 340 | -10/Materials | Discovered new exit (range 15) 356 | -10/Materials | Discovered new exit (range 15) 576 | -10/Materials | Discovered new exit (range 16) 600 | -10/Materials | Build established: Scavenger-Mutant 626 | -10/Materials | Discovered new exit (range 8) 662 | -10/Materials | Entered Subcaves 663 | -10/Subcaves | Approached by a straggling Scientist 678 | -10/Subcaves | Learned location of Zion (-7) 678 | -10/Subcaves | Met a Zionite searching for "candidates" 692 | -10/Subcaves | Core integrity fell below 50% 763 | -10/Subcaves | Shifting Twisted Machinery released Sub. Machine Gun 767 | -10/Subcaves | Discovered new exit (range 15) 792 | -10/Subcaves | Shifting Twisted Machinery released Sub. Machine Gun 833 | -10/Subcaves | Shifting Twisted Machinery released Mak. Light Armor Plating 939 | -10/Subcaves | Ambushed by Subdweller buried in earth 942 | -10/Subcaves | Core integrity fell below 20% 1107 | -10/Subcaves | Build established: Mutant 1127 | -10/Subcaves | Entered Recycling 1128 | -7/Recycling | Met a Zionite searching for Scraptown 1624 | -7/Recycling | Discovered new exit (range 10) 1656 | -7/Recycling | Destroyed by G-47 Trooper with Particle Gun Last Messages --------------- Acquired Tractor Beam. Sneak attack on R-06 Scavenger. Destroyed Lgt. Ion Engine. R-06 Scavenger destroyed. R-06 Scavenger collects Tractor Beam. Acquired 72 matter. R-06 Scavenger collects Com. Wheel. Sneak attack on R-06 Scavenger. Destroyed Tractor Beam. Destroyed Lgt. Ion Engine. R-06 Scavenger destroyed. Connecting with Terminal... Dropped Imp. Concussive RPG. Dropped Tractor Beam. Acquired Imp. Concussive RPG. EXIT=FOUND Sneak attack on R-06 Scavenger. R-06 Scavenger destroyed. Y-54 Guardian springs to life. G-47 Trooper springs to life. Map ----- +----------------------------------------------------+ | ?????????????????????????????????? | | ?????????????????????????????????? | | ?????????????????????????????????? | | ?????????????????????????????????? | | ?????????????????????????????????? | | ?????????????????????????????????? | | ?????????????????????????????????? | | ?????????????????????????????????? | | ?????????????????????????????????? | | ?????????????????????????????????? | | ???? ??????????????????????????? | | ???# ??????????????????????????? | | ???# ??????????????????????????? | | ???# ??????????????????????????? | | ???# ??????????????????????????? | | ???# #?????????????????????????? | | ??## #?????????????????????????? | | ??"" !?????????????????????????? | | ??"Y !?????????????????????????? | | ???" !?????????????????????????? | | ???# ###########???????????????? | | ???# # i g #???????????????? | | ???# # Y! r #??????????###### | | ???# # !i% #??????????# | | ???# # bg #??????????# "" | | ???# +%@ ks gY#??????????# "" | | ???# #ig%= !!!#??????????# "T | | ???# #ra r l#??????????# "" | | ???# # !s #??????????# "" | | ???# ###########??????????# | | ???# #????????????????????# | | ???# #??########+#######??# | | ???# #?? ???#+##+# | | ???# #??# ?????# # | | ???# #??# ??????# # | | ???# #??# ????### # | | ???# #??# ? ?????+ | | ???# #??# ??? ?????# | | ???# #####+######+####### | | ???# | | ???# | | ???# """ | | ???# """"" ######+#########+##+# | | ???# """"" # % #?# | | ???# """"" # ! #?# | | ???# """ # #?# """" | | ???# # ! #?# """" | | ???# # ! = #?# """" | | ???# ####### % #?# """" | | ???# < #?????# [ #?# """" | +----------------------------------------------------+ Best States ------------- Heat Dissipation 52 Energy Generation 14 Energy Capacity 275 Matter Stores 300 Matter Capacity 300 Sight Range 16 Terrain Scan Density 10 Evasion (%) 55 Recoil Reduction 1 Offensive Hacking 10 Item Schematics ----------------- None Robot Schematics ------------------ None Fabricated ------------ Nothing Repaired ---------- Nothing Studied --------- None Alien Tech Used ----------------- None Achievements -------------- None Challenges ------------ None Game ------ Seed RecoilSupercompositeMapper Manual? 0 Play Time 00:20:11 Cumulative 1.3 hours Start 2026.02.20 @ 16:31:33 End 2026.02.20 @ 16:53:12 Sessions 1 Manual Loads 0 Difficulty Rogue Special Mode None Game No. 6 Rogue 5 Adventurer 1 Explorer 0 Win Type - Total 0 Types 0/0/0/0/0/0/0/0/0/0 Lore% 1 Gallery% 5 Achievement% 6 Wizard Run 0 Options --------- Layout 1 ASCII 0 Keyboard 0 Movement Mouse Keybinds 0 Fullscreen 1 Font 32/SmallcapsGlow Map View 50x35 Zoom Use 0% Tactical HUD 0 Map Filters NONE Filters NONE Steam 1 RUN: 89928141-abac-47dd-915e-5aebf87252b0